fUST/lending_fUST_20240304
["ID","MTS","AMOUNT","RATE_DAILY","PERIOD"]
[316475483,1709496632811,-500.0,0.00023999,2]
[316475484,1709496632820,-154.76868611,0.00023999,2]
[316475485,1709496632830,-500.0,0.00023999,2]
[316475486,1709496632838,-500.0,0.00023999,2]
[316475487,1709496632848,-508.89185777,0.00023999,2]
[316475488,1709496632857,-500.0,0.00023999,2]
[316475489,1709496632866,-500.0,0.00023999,2]
[316475490,1709496632875,-500.0,0.00023999,2]
[316475491,1709496632884,-500.0,0.00023999,2]
[316475492,1709496632893,-442.6,0.00023999,2]
[316475493,1709496632902,-500.0,0.00023999,2]
[316475494,1709496632911,-500.0,0.00023999,2]
[316475495,1709496632921,-500.0,0.00023999,2]
[316475496,1709496632930,-500.0,0.00023999,2]
[316475497,1709496632938,-500.0,0.00023999,2]
[316475498,1709496632947,-500.0,0.00023999,2]
[316475499,1709496632957,-500.0,0.00023999,2]
[316475500,1709496632965,-500.0,0.00023999,2]
[316475501,1709496632974,-500.0,0.00023999,2]
[316475502,1709496632983,-500.0,0.00023999,2]
[316475503,1709496632992,-500.0,0.00023999,2]
[316475504,1709496633001,-500.0,0.00023999,2]
[316475505,1709496633011,-500.0,0.00023999,2]
[316475506,1709496633020,-500.0,0.00023999,2]
[316475507,1709496633030,-500.0,0.00023999,2]
[316475508,1709496633040,-227.08581553,0.00023999,2]
[316475509,1709496633049,-1095581.5465691,0.00024,5]
[316475517,1709496637816,-1066.002,0.00024,5]
[316475518,1709496637831,-368.80774204,0.00024,5]
[316475519,1709496638026,-1866.40760011,0.00024,5]
[316475520,1709496638039,-1448031.84666314,0.00024,5]
[316475549,1709496643181,-43436.12064877,0.00024,5]
[316475631,1709497161253,5000.0,0.00024,49]
[316475656,1709497642140,-154.92253873,0.00019969,2]
[316475657,1709497642160,-357.58670785,0.0001997,2]
[316475658,1709497642181,-1880.09255001,0.00019971,2]
[316475659,1709497642203,-155.30667572,0.0002,2]
[316475660,1709497642225,-167.429904,0.00021362,2]
[316475661,1709497642246,-403.25072186,0.000219,2]
[316475662,1709497642268,-201.39091183,0.00021954,2]
[316475693,1709497832036,-357.58670785,0.00021898,2]
[316475694,1709497832046,-1880.09255001,0.00021899,2]
[316475695,1709497832055,-318.83381458,0.000219,2]
[316475696,1709497832064,-46.64297717,0.00021954,2]
[316475697,1709497832073,-157.1740432,0.00022,2]
[316475698,1709497832082,-2195.7147922,0.00022308,2]
[316475699,1709497832091,-235.0783148,0.00022413,2]
[316475700,1709497832100,-183.35270882,0.00022598,2]
[316475701,1709497832109,-4071.7476595,0.00023001,2]
[316475702,1709497832118,-501.26550569,0.00023002,2]
[316475703,1709497832127,-500.0,0.00023002,2]
[316475704,1709497832136,-500.0,0.00023004,2]
[316475705,1709497832145,-500.0,0.00023004,2]
[316475706,1709497832154,-221.99212343,0.00023009,5]
[316475707,1709497832163,-200.0,0.000232,2]
[316475708,1709497832172,-159.711963,0.00023505,2]
[316475709,1709497832181,-291.40864162,0.000239,2]
[316475711,1709497832191,-1145.6812085,0.000239,2]
[316475712,1709497832200,-883.08354946,0.00023974,2]
[316475713,1709497832209,-1145.68120846,0.00023986,2]
[316475715,1709497832218,-155.16136782,0.00023998,2]
[316475717,1709497832227,-926.94993445,0.00023998,2]
[316475719,1709497832236,-500.0,0.00023998,2]
[316475721,1709497832246,-500.0,0.00023998,2]
[316475723,1709497832255,-500.0,0.00023998,2]
[316475725,1709497832264,-500.0,0.00023998,2]
[316475727,1709497832275,-500.0,0.00023998,2]
[316475729,1709497832287,-500.0,0.00023998,2]
[316475731,1709497832297,-317.44523282,0.00023998,2]
[316475733,1709497832306,-500.0,0.00023998,2]
[316475735,1709497832316,-500.0,0.00023998,2]
[316475737,1709497832325,-622.75,0.00023998,2]
[316475739,1709497832336,-500.0,0.00023998,2]
[316475741,1709497832344,-500.0,0.00023998,2]
[316475743,1709497832353,-500.0,0.00023998,2]
[316475745,1709497832363,-500.0,0.00023998,2]
[316475747,1709497832372,-500.0,0.00023998,2]
[316475749,1709497832381,-500.0,0.00023998,2]
[316475751,1709497832391,-598.48273053,0.00023998,2]
[316475753,1709497832400,-155.40019691,0.00023998,2]
[316475755,1709497832409,-630.05,0.00023998,2]
[316475757,1709497832418,-500.0,0.00023998,2]
[316475759,1709497832427,-500.0,0.00023998,2]
[316475761,1709497832437,-500.0,0.00023998,2]
[316475763,1709497832446,-500.0,0.00023998,2]
[316475765,1709497832455,-500.0,0.00023998,2]
[316475767,1709497832463,-500.0,0.00023998,2]
[316475769,1709497832472,-500.0,0.00023998,2]
[316475771,1709497832481,-500.0,0.00023998,2]
[316475773,1709497832490,-500.0,0.00023998,2]
[316475774,1709497832500,-500.0,0.00023998,2]
[316475776,1709497832509,-609.09506785,0.00023998,2]
[316475778,1709497832520,-500.0,0.00023998,2]
[316475780,1709497832529,-500.0,0.00023998,2]
[316475782,1709497832538,-500.0,0.00023998,2]
[316475784,1709497832548,-500.0,0.00023999,2]
[316475786,1709497832558,-500.0,0.00023999,2]
[316475788,1709497832570,-500.0,0.00023999,2]
[316475790,1709497832580,-500.0,0.00023999,2]
[316475792,1709497832590,-500.0,0.00023999,2]
[316475794,1709497832598,-524.79055611,0.00023999,2]
[316475796,1709497832608,-460.86714912,0.00023999,2]
[316475798,1709497832618,-500.0,0.00023999,2]
[316475800,1709497832628,-500.0,0.00023999,2]
[316475801,1709497832639,-500.0,0.00023999,2]
[316475803,1709497832650,-500.0,0.00023999,2]
[316475805,1709497832659,-500.0,0.00023999,2]
[316475807,1709497832669,-500.0,0.00023999,2]
[316475809,1709497832678,-500.0,0.00023999,2]
[316475811,1709497832688,-500.0,0.00023999,2]
[316475813,1709497832697,-500.0,0.00023999,2]
[316475815,1709497832707,-500.0,0.00023999,2]
[316475817,1709497832716,-498.0,0.00023999,2]
[316475819,1709497832725,-500.0,0.00023999,2]
[316475820,1709497832734,-509.10813703,0.00023999,2]
[316475822,1709497832744,-500.0,0.00023999,2]
[316475824,1709497832753,-500.0,0.00023999,2]
[316475826,1709497832763,-170.67,0.00023999,2]
[316475829,1709497832780,-500.0,0.00023999,2]
[316475830,1709497832789,-500.0,0.00023999,2]
[316475832,1709497832798,-500.0,0.00023999,2]
[316475834,1709497832807,-500.0,0.00023999,2]
[316475836,1709497832817,-501.97279534,0.00023999,2]
[316475838,1709497832826,-500.0,0.00023999,2]
[316475840,1709497832835,-515.0,0.00023999,2]
[316475842,1709497832844,-508.53966518,0.00023999,2]
[316475844,1709497832856,-500.0,0.00023999,2]
[316475846,1709497832865,-500.0,0.00023999,2]
[316475848,1709497832874,-500.0,0.00023999,2]
[316475850,1709497832883,-500.0,0.00023999,2]
[316475852,1709497832893,-500.0,0.00023999,2]
[316475854,1709497832902,-500.0,0.00023999,2]
[316475856,1709497832911,-500.0,0.00023999,2]
[316475858,1709497832920,-500.0,0.00023999,2]
[316475860,1709497832930,-500.0,0.00023999,2]
[316475862,1709497832939,-500.0,0.00023999,2]
[316475864,1709497832949,-500.0,0.00023999,2]
[316475866,1709497832958,-500.0,0.00023999,2]
[316475868,1709497832967,-500.0,0.00023999,2]
[316475870,1709497832976,-500.0,0.00023999,2]
[316475872,1709497832985,-500.0,0.00023999,2]
[316475874,1709497832995,-500.0,0.00023999,2]
[316475876,1709497833004,-500.0,0.00023999,2]
[316475878,1709497833014,-187.59,0.00023999,2]
[316475880,1709497833026,-500.0,0.00023999,2]
[316475882,1709497833035,-500.0,0.00023999,2]
[316475884,1709497833044,-500.0,0.00023999,2]
[316475886,1709497833053,-500.0,0.00023999,2]
[316475888,1709497833062,-500.0,0.00023999,2]
[316475890,1709497833071,-500.0,0.00023999,2]
[316475892,1709497833080,-500.0,0.00023999,2]
[316475894,1709497833089,-592.24,0.00023999,2]
[316475896,1709497833098,-500.0,0.00023999,2]
[316475897,1709497833107,-500.0,0.00023999,2]
[316475899,1709497833117,-181.51197123,0.00023999,2]
[316475901,1709497833126,-500.0,0.00023999,2]
[316475903,1709497833136,-500.0,0.00023999,2]
[316475905,1709497833145,-500.0,0.00023999,2]
[316475907,1709497833154,-500.0,0.00023999,2]
[316475909,1709497833164,-500.0,0.00023999,2]
[316475911,1709497833173,-500.0,0.00023999,2]
[316475913,1709497833183,-500.0,0.00023999,2]
[316475915,1709497833192,-500.0,0.00023999,2]
[316475917,1709497833201,-500.0,0.00023999,2]
[316475919,1709497833210,-500.0,0.00023999,2]
[316475922,1709497833228,-500.0,0.00023999,2]
[316475925,1709497833240,-500.0,0.00023999,2]
[316475927,1709497833249,-500.0,0.00023999,2]
[316475928,1709497833259,-500.0,0.00023999,2]
[316475931,1709497833272,-145.96977005,0.00023999,2]
[316475933,1709497833290,-354.03022995,0.00023999,2]
[316475935,1709497833300,-500.0,0.00023999,2]
[316475937,1709497833310,-609.84,0.00023999,2]
[316475939,1709497833319,-500.0,0.00023999,2]
[316475941,1709497833330,-486.16133481,0.00023999,2]
[316476400,1709497837954,-327.2688057,0.00022,2]
[316476402,1709497837964,-13.83866519,0.00023999,2]
[316476404,1709497837973,-319.14334239,0.00023999,2]
[316476415,1709497838071,-180.85665761,0.00023999,2]
[316476417,1709497838081,-500.0,0.00023999,2]
[316476419,1709497838091,-500.0,0.00023999,2]
[316476421,1709497838100,-500.0,0.00023999,2]
[316476423,1709497838110,-500.0,0.00023999,2]
[316476425,1709497838119,-500.0,0.00023999,2]
[316476427,1709497838129,-500.0,0.00023999,2]
[316476430,1709497838141,-500.0,0.00023999,2]
[316476432,1709497838150,-530.16,0.00023999,2]
[316476434,1709497838159,-500.0,0.00023999,2]
[316476435,1709497838168,-1443320.83000553,0.00024,5]
[316476745,1709497841095,-2692.24424372,0.00024,5]
[316477060,1709497844152,-4946.1588636,0.00024,5]
[316477067,1709497844218,-377.54518258,0.00023999,2]
[316477070,1709497844230,-1502.54736743,0.00023999,2]
[316477072,1709497844240,-69695.78754243,0.00024,5]
[316477258,1709497846091,-507.78252068,0.00024,5]
[316477557,1709497848898,-301.62651318,0.00023999,2]
[316477559,1709497848908,-9198.26944482,0.00024,5]
[316477561,1709497848920,-315.22236009,0.00024,5]
[316478354,1709498825169,-186.30267479,0.00021899,2]
[316478355,1709498825197,-217.40418521,0.00021899,2]
[316478982,1709499038190,-212.55587638,0.00019799,2]
[316478984,1709499038199,-186.30267479,0.00021898,2]
[316478986,1709499038209,-1662.6883648,0.00021899,2]
[316478988,1709499038219,-167.888307,0.00022304,2]
[316478990,1709499038228,-938.74396955,0.00022598,2]
[316478992,1709499038237,-166.509719,0.00022707,2]
[316478994,1709499038246,-292.39,0.000232,2]
[316478996,1709499038255,-1000.0,0.00023596,5]
[316478998,1709499038264,-167.888307,0.00023824,2]
[316479000,1709499038273,-916.54496684,0.000239,2]
[316479002,1709499038282,-2882.01021016,0.00023974,2]
[316479004,1709499038292,-916.54496676,0.00023984,2]
[316479006,1709499038301,-562.1,0.0002399,3]
[316479008,1709499038311,-562.05,0.0002399,3]
[316479010,1709499038320,-926.94993445,0.00023998,2]
[316479012,1709499038330,-155.16447434,0.00023998,2]
[316479014,1709499038339,-500.0,0.00023998,2]
[316479016,1709499038348,-285.79635787,0.00023998,2]
[316479018,1709499038358,-300.79790738,0.00023999,2]
[316479020,1709499038367,-500.0,0.00023999,2]
[316479022,1709499038377,-500.0,0.00023999,2]
[316479024,1709499038387,-500.0,0.00023999,2]
[316479026,1709499038396,-500.0,0.00023999,2]
[316479028,1709499038405,-500.0,0.00023999,2]
[316479030,1709499038414,-6.00075177,0.00023999,2]
[316479032,1709499038426,-493.99924823,0.00023999,2]
[316479034,1709499038435,-500.0,0.00023999,2]
[316479036,1709499038444,-500.0,0.00023999,2]
[316479038,1709499038453,-500.0,0.00023999,2]
[316479040,1709499038462,-500.0,0.00023999,2]
[316479042,1709499038471,-500.0,0.00023999,2]
[316479044,1709499038480,-500.0,0.00023999,2]
[316479046,1709499038490,-500.0,0.00023999,2]
[316479048,1709499038499,-485.75359439,0.00023999,2]
[316479050,1709499038507,-500.0,0.00023999,2]
[316479052,1709499038516,-500.0,0.00023999,2]
[316479054,1709499038525,-500.0,0.00023999,2]
[316479056,1709499038534,-500.0,0.00023999,2]
[316479058,1709499038543,-500.0,0.00023999,2]
[316479060,1709499038552,-500.0,0.00023999,2]
[316479062,1709499038561,-16.5742659,0.00023999,2]
[316479494,1709499043194,-155.0,0.00023,2]
[316479496,1709499043203,-483.4257341,0.00023999,2]
[316479498,1709499043213,-500.0,0.00023999,2]
[316479500,1709499043222,-500.0,0.00023999,2]
[316479502,1709499043231,-500.0,0.00023999,2]
[316479504,1709499043240,-500.0,0.00023999,2]
[316479506,1709499043250,-500.0,0.00023999,2]
[316479508,1709499043259,-500.0,0.00023999,2]
[316479510,1709499043268,-500.0,0.00023999,2]
[316479512,1709499043277,-500.0,0.00023999,2]
[316479514,1709499043286,-500.0,0.00023999,2]
[316479517,1709499043295,-500.0,0.00023999,2]
[316479520,1709499043304,-500.0,0.00023999,2]
[316479522,1709499043315,-500.0,0.00023999,2]
[316479524,1709499043324,-12416.9588919,0.00024,5]
[316479807,1709499046234,-8985.75359439,0.00024,5]
[316481539,1709500035123,-186.30267479,0.00019772,2]
[316481540,1709500035144,-168.040727,0.00019773,2]
[316481541,1709500035164,-122.66151038,0.00019999,2]
[316481554,1709500149173,-300.0,0.00019968,2]
[316481555,1709500149194,-21122.2360336,0.00019969,2]
[316481556,1709500149215,-1757.43103963,0.00019999,2]
[316481557,1709500149234,-301.93092772,0.0002,2]
[316481558,1709500149254,-306.80997,0.0002,2]
[316481559,1709500149277,-166.46955672,0.000209,2]
[316481560,1709500149299,-234.32612748,0.00021,2]
[316481561,1709500149320,-9914.99256577,0.00021,2]
[316481562,1709500149343,-195.39788293,0.00021,2]
[316481563,1709500149365,-234.73973401,0.00021481,2]
[316481564,1709500149386,-500.0,0.00021481,2]
[316481565,1709500149406,-159.91556775,0.00021482,2]
[316481566,1709500149427,-354.10599002,0.00021482,2]
[316481567,1709500149449,-501.87966091,0.00021482,2]
[316481568,1709500149471,-500.0,0.00021482,2]
[316481569,1709500149493,-500.0,0.00021482,2]
[316481570,1709500149513,-500.0,0.00021482,2]
[316481571,1709500149534,-500.0,0.00021482,2]
[316481572,1709500149557,-217.85395828,0.00021482,2]
[316481573,1709500149581,-500.0,0.00021482,2]
[316481574,1709500149603,-500.0,0.00021482,2]
[316481575,1709500149625,-500.0,0.00021482,2]
[316481576,1709500149646,-500.0,0.00021482,2]
[316481577,1709500149666,-500.0,0.00021482,2]
[316481578,1709500149688,-500.0,0.00021482,2]
[316481579,1709500149710,-500.0,0.00021482,2]
[316481580,1709500149731,-500.0,0.00021482,2]
[316481581,1709500149752,-500.0,0.00021482,2]
[316481582,1709500149772,-442.92279558,0.00021482,2]
[316481583,1709500149795,-1740.19,0.00021482,2]
[316481584,1709500149817,-500.0,0.00021482,2]
[316481585,1709500149840,-500.0,0.00021482,2]
[316481586,1709500149863,-500.0,0.00021482,2]
[316481587,1709500149891,-500.0,0.00021482,2]
[316481588,1709500149915,-500.0,0.00021482,2]
[316481589,1709500149937,-500.0,0.00021482,2]
[316481590,1709500149959,-9866.9504475,0.00021483,2]
[316481637,1709500232414,-496.62444143,0.00019383,2]
[316481639,1709500232423,-500.0,0.00021481,2]
[316481641,1709500232432,-50.36267335,0.00021482,2]
[316481643,1709500232445,-449.63732665,0.00021482,2]
[316481645,1709500232454,-500.0,0.00021482,2]
[316481647,1709500232463,-500.0,0.00021482,2]
[316481649,1709500232472,-1132.25,0.00021482,2]
[316481651,1709500232481,-500.0,0.00021482,2]
[316481653,1709500232491,-3349.90081882,0.00021483,2]
[316481656,1709500232514,-6921.86745446,0.00021483,2]
[316481658,1709500232523,-186.30267479,0.00021798,2]
[316481660,1709500232533,-198.80326053,0.00021799,2]
[316481662,1709500232543,-431.91651792,0.00021799,2]
[316481665,1709500232552,-168.040727,0.00022469,2]
[316481668,1709500232562,-1880.09255001,0.00022605,2]
[316481670,1709500232571,-234.68599239,0.00022606,2]
[316481672,1709500232580,-186.158843,0.00022726,2]
[316481673,1709500232589,-155.0,0.00023,2]
[316481674,1709500232598,-803.1763618,0.00023012,5]
[316481676,1709500232608,-1066.71771982,0.00023898,2]
[316481678,1709500232616,-500.0,0.00023898,2]
[316481680,1709500232625,-500.0,0.00023898,2]
[316481682,1709500232635,-500.0,0.00023898,2]
[316481684,1709500232644,-500.0,0.00023898,2]
[316481686,1709500232654,-500.0,0.00023898,2]
[316481688,1709500232664,-500.0,0.00023898,2]
[316481690,1709500232673,-500.0,0.00023898,2]
[316481692,1709500232682,-500.0,0.00023898,2]
[316481694,1709500232690,-129.91822056,0.00023898,2]
[316481696,1709500232702,-370.08177944,0.00023898,2]
[316481698,1709500232712,-1132.25,0.00023898,2]
[316481700,1709500232721,-500.0,0.00023898,2]
[316481702,1709500232730,-500.0,0.00023898,2]
[316481703,1709500232739,-1066.71771981,0.00023899,2]
[316481704,1709500232748,-500.0,0.00023899,2]
[316481705,1709500232757,-500.0,0.00023899,2]
[316481706,1709500232766,-500.36408889,0.00023899,2]
[316481707,1709500232775,-500.0,0.00023899,2]
[316481708,1709500232784,-500.0,0.00023899,2]
[316481709,1709500232793,-500.0,0.00023899,2]
[316481710,1709500232803,-500.0,0.00023899,2]
[316481711,1709500232812,-500.0,0.00023899,2]
[316481712,1709500232821,-500.0,0.00023899,2]
[316481713,1709500232830,-500.0,0.00023899,2]
[316481714,1709500232841,-500.0,0.00023899,2]
[316481715,1709500232851,-500.0,0.00023899,2]
[316481716,1709500232861,-500.0,0.00023899,2]
[316481717,1709500232871,-500.0,0.00023899,2]
[316481718,1709500232881,-515.31171964,0.00023899,2]
[316481719,1709500232891,-500.0,0.00023899,2]
[316481720,1709500232902,-524.20214721,0.00023899,2]
[316481721,1709500232911,-500.0,0.00023899,2]
[316481722,1709500232921,-500.0,0.00023899,2]
[316481723,1709500232931,-500.0,0.00023899,2]
[316481724,1709500232943,-500.0,0.00023899,2]
[316481725,1709500232953,-500.0,0.00023899,2]
[316481726,1709500232962,-500.0,0.00023899,2]
[316481727,1709500232972,-1066.71771981,0.00023899,2]
[316481728,1709500232981,-500.0,0.00023899,2]
[316481729,1709500232990,-500.0,0.00023899,2]
[316481730,1709500233000,-500.0,0.00023899,2]
[316481731,1709500233009,-500.0,0.00023899,2]
[316481732,1709500233019,-500.0,0.00023899,2]
[316481733,1709500233028,-253.29640782,0.00023899,2]
[316481734,1709500233038,-500.0,0.00023899,2]
[316481735,1709500233048,-500.0,0.00023899,2]
[316481736,1709500233057,-1066.71771981,0.000239,2]
[316481737,1709500233067,-733.23597348,0.000239,2]
[316481738,1709500233076,-1066.71771981,0.000239,2]
[316481739,1709500233086,-196.27,0.00023964,3]
[316481740,1709500233095,-588.83,0.00023964,3]
[316481741,1709500233105,-7349.67861464,0.00023974,2]
[316481742,1709500233114,-733.2359734,0.00023985,2]
[316481743,1709500233123,-500.0,0.00023996,2]
[316481744,1709500233133,-1740.19,0.00023996,2]
[316481745,1709500233143,-500.0,0.00023996,2]
[316481746,1709500233153,-500.0,0.00023996,2]
[316481747,1709500233162,-500.0,0.00023996,2]
[316481748,1709500233171,-500.0,0.00023996,2]
[316481749,1709500233181,-500.0,0.00023996,2]
[316481750,1709500233194,-500.0,0.00023997,2]
[316481751,1709500233203,-550.8,0.00023997,2]
[316481752,1709500233214,-500.0,0.00023997,2]
[316481753,1709500233223,-563.97,0.00023997,2]
[316481754,1709500233233,-500.0,0.00023997,2]
[316481755,1709500233243,-500.0,0.00023997,2]
[316481756,1709500233253,-500.0,0.00023997,2]
[316481757,1709500233262,-364.91903184,0.00023997,2]
[316481758,1709500233271,-500.0,0.00023997,2]
[316481759,1709500233283,-500.0,0.00023997,2]
[316481760,1709500233292,-500.0,0.00023997,2]
[316481761,1709500233302,-500.0,0.00023997,2]
[316481762,1709500233312,-500.0,0.00023997,2]
[316481763,1709500233323,-500.0,0.00023997,2]
[316481764,1709500233420,-500.0,0.00023997,2]
[316481765,1709500233430,-500.0,0.00023997,2]
[316481766,1709500233440,-500.0,0.00023997,2]
[316481767,1709500233450,-500.0,0.00023997,2]
[316481768,1709500233459,-1740.19,0.00023997,2]
[316481769,1709500233469,-500.0,0.00023997,2]
[316481770,1709500233478,-500.0,0.00023997,2]
[316481771,1709500233488,-500.0,0.00023997,2]
[316481772,1709500233498,-500.0,0.00023997,2]
[316481773,1709500233507,-500.0,0.00023997,2]
[316481774,1709500233517,-500.0,0.00023997,2]
[316481775,1709500233526,-500.0,0.00023997,2]
[316481776,1709500233537,-500.0,0.00023997,2]
[316481777,1709500233546,-500.0,0.00023997,2]
[316481778,1709500233555,-500.0,0.00023997,2]
[316481779,1709500233565,-500.0,0.00023997,2]
[316481780,1709500233576,-500.0,0.00023997,2]
[316481781,1709500233586,-1132.25,0.00023997,2]
[316481782,1709500233597,-1132.25,0.00023997,2]
[316481783,1709500233606,-500.0,0.00023997,2]
[316481784,1709500233616,-500.0,0.00023997,2]
[316481785,1709500233627,-327.22275751,0.00023998,2]
[316481786,1709500233637,-157.14741337,0.00023998,2]
[316481787,1709500233648,-926.94993445,0.00023998,2]
[316481788,1709500233659,-161.37896509,0.00023998,2]
[316481789,1709500233668,-10018.63584983,0.00023998,2]
[316481790,1709500233681,-2832.04687078,0.00023998,2]
[316481834,1709500238361,-2381.72804143,0.00023998,2]
[316481836,1709500238371,-155.20176229,0.00023998,2]
[316481838,1709500238381,-159.80558045,0.00023998,2]
[316481840,1709500238391,-4699.22949954,0.00023998,2]
[316481842,1709500238400,-209.91738414,0.00023998,2]
[316481844,1709500238412,-538.27532223,0.00023998,2]
[316481846,1709500238421,-298.83261026,0.00023998,2]
[316481848,1709500238430,-500.0,0.00023998,2]
[316481850,1709500238439,-500.0,0.00023998,2]
[316481852,1709500238447,-86.00601699,0.00023998,2]
[316481854,1709500238459,-413.99398301,0.00023998,2]
[316481856,1709500238469,-500.0,0.00023998,2]
[316481858,1709500238478,-500.0,0.00023998,2]
[316481860,1709500238488,-500.0,0.00023998,2]
[316481862,1709500238497,-500.0,0.00023998,2]
[316481864,1709500238506,-500.0,0.00023998,2]
[316481866,1709500238515,-500.0,0.00023998,2]
[316481868,1709500238524,-500.0,0.00023998,2]
[316481870,1709500238534,-500.0,0.00023998,2]
[316481872,1709500238544,-500.0,0.00023998,2]
[316481874,1709500238554,-500.0,0.00023998,2]
[316481876,1709500238563,-500.0,0.00023998,2]
[316481878,1709500238572,-368.08,0.00023998,2]
[316481880,1709500238581,-500.0,0.00023998,2]
[316481882,1709500238591,-500.0,0.00023998,2]
[316481884,1709500238600,-500.0,0.00023998,2]
[316481886,1709500238609,-500.0,0.00023998,2]
[316481888,1709500238618,-500.0,0.00023998,2]
[316481890,1709500238627,-500.0,0.00023998,2]
[316481892,1709500238636,-500.0,0.00023998,2]
[316481894,1709500238646,-500.0,0.00023998,2]
[316481896,1709500238656,-500.0,0.00023998,2]
[316481898,1709500238665,-411.45,0.00023998,2]
[316481900,1709500238674,-500.0,0.00023998,2]
[316481902,1709500238684,-174.23266301,0.00023998,2]
[316481904,1709500238693,-1740.19,0.00023998,2]
[316481906,1709500238702,-1740.19,0.00023998,2]
[316481908,1709500238711,-1740.19,0.00023998,2]
[316481910,1709500238721,-1740.19,0.00023998,2]
[316481912,1709500238730,-500.0,0.00023998,2]
[316481914,1709500238738,-500.0,0.00023998,2]
[316481916,1709500238749,-500.0,0.00023998,2]
[316481918,1709500238758,-500.0,0.00023998,2]
[316481920,1709500238767,-500.0,0.00023998,2]
[316481922,1709500238775,-500.0,0.00023998,2]
[316481924,1709500238784,-500.0,0.00023998,2]
[316481926,1709500238793,-500.0,0.00023998,2]
[316481928,1709500238802,-500.0,0.00023998,2]
[316481930,1709500238811,-500.0,0.00023998,2]
[316481932,1709500238819,-500.0,0.00023998,2]
[316481934,1709500238829,-500.0,0.00023998,2]
[316481936,1709500238838,-500.0,0.00023998,2]
[316481938,1709500238847,-500.0,0.00023998,2]
[316481940,1709500238856,-500.0,0.00023998,2]
[316481942,1709500238865,-500.0,0.00023998,2]
[316481944,1709500238875,-500.0,0.00023998,2]
[316481946,1709500238884,-500.0,0.00023998,2]
[316481948,1709500238893,-500.0,0.00023998,2]
[316481950,1709500238902,-500.0,0.00023998,2]
[316481952,1709500238912,-500.0,0.00023998,2]
[316481954,1709500238922,-500.0,0.00023998,2]
[316481956,1709500238931,-1132.25,0.00023998,2]
[316481958,1709500238941,-1132.25,0.00023998,2]
[316481960,1709500238951,-1132.25,0.00023998,2]
[316481962,1709500238960,-500.0,0.00023998,2]
[316481964,1709500238970,-500.0,0.00023998,2]
[316481966,1709500238979,-500.0,0.00023998,2]
[316481968,1709500238988,-705.07,0.00023998,2]
[316481970,1709500238997,-705.07,0.00023998,2]
[316481972,1709500239006,-705.07,0.00023998,2]
[316481974,1709500239015,-705.07,0.00023998,2]
[316481976,1709500239025,-705.07,0.00023998,2]
[316481978,1709500239033,-705.07,0.00023998,2]
[316481980,1709500239042,-705.07,0.00023998,2]
[316481982,1709500239053,-705.07,0.00023998,2]
[316481984,1709500239062,-705.07,0.00023998,2]
[316481986,1709500239072,-705.07,0.00023998,2]
[316481988,1709500239081,-238.53127687,0.00023999,2]
[316481989,1709500239090,-473.55225151,0.00023999,2]
[316481991,1709500239099,-500.0,0.00023999,2]
[316481993,1709500239108,-170.32308806,0.00023999,2]
[316481995,1709500239118,-200.0,0.00023999,2]